lending/lending_fUSD_20240621
["ID","MTS","AMOUNT","RATE_DAILY","PERIOD"]
[330096282,1718989981829,-1999.0,0.00052082,120]
[330096283,1718989981840,-1999.0,0.00052082,120]
[330096284,1718989981850,-1999.0,0.00052082,120]
[330096285,1718989981861,-1999.0,0.00052082,120]
[330096286,1718989981873,-1999.0,0.00052082,120]
[330096287,1718989981884,-1999.0,0.00052082,120]
[330096288,1718989981896,-1999.0,0.00052082,120]
[330096289,1718989981907,-1999.0,0.00052082,120]
[330096290,1718989981917,-1999.0,0.00052082,120]
[330096291,1718989981927,-1999.0,0.00052082,120]
[330096292,1718989981937,-1999.0,0.00052082,120]
[330096293,1718989981947,-1999.0,0.00052082,120]
[330096294,1718989981957,-1226.54169923,0.00052082,120]
[330096295,1718989981967,-2500.0,0.000523,2]
[330096296,1718989981977,-1076.0,0.00052642,28]
[330096297,1718989981987,-570.13140931,0.00053,2]
[330096298,1718989981997,-1849.27793241,0.00053,120]
[330096299,1718989982012,-2050.0,0.00053,2]
[330096300,1718989982023,-442.11404836,0.0005331,2]
[330096301,1718989982032,-19704.08,0.00053424,120]
[330096302,1718989982043,-1076.0,0.00053654,28]
[330096303,1718989982052,-6414.79,0.00053704,117]
[330096304,1718989982062,-10124.41028679,0.0005378,30]
[330096305,1718989982071,-2857.96594897,0.00053889,25]
[330096306,1718989982081,-500.0,0.00053889,20]
[330096307,1718989982091,-1407.69270122,0.0005395,120]
[330096308,1718989982100,-167.88514303,0.00053955,120]
[330096309,1718989982110,-167.88514303,0.00053957,120]
[330096310,1718989982119,-1407.69270122,0.00053958,120]
[330096311,1718989982133,-1407.69270122,0.0005396,120]
[330096312,1718989982144,-167.88514303,0.00053963,120]
[330096313,1718989982155,-1407.69270122,0.00053965,120]
[330096314,1718989982165,-167.88514303,0.00053968,120]
[330096315,1718989982177,-167.88514303,0.00053971,120]
[330096316,1718989982186,-167.88514303,0.00053971,120]
[330096317,1718989982196,-1407.69270122,0.00053972,120]
[330096318,1718989982206,-167.88514303,0.00053973,120]
[330096319,1718989982218,-1407.69270122,0.00053974,120]
[330096320,1718989982228,-1407.69270122,0.00053975,120]
[330096321,1718989982237,-1407.69270122,0.00053988,120]
[330096322,1718989982247,-528.91,0.00053992,2]
[330096323,1718989982259,-167.88514303,0.00053993,120]
[330096324,1718989982269,-1407.69270122,0.00053995,120]
[330096325,1718989982278,-167.88514303,0.00053997,120]
[330096326,1718989982287,-1847.0,0.00054,120]
[330096327,1718989982296,-1847.0,0.00054,30]
[330096328,1718989982306,-350.0,0.00054,120]
[330096329,1718989982315,-1000.0,0.00054,120]
[330096330,1718989982324,-908.0,0.00054,120]
[330096331,1718989982334,-908.0,0.00054,120]
[330096332,1718989982344,-908.0,0.00054,120]
[330096333,1718989982353,-908.0,0.00054,120]
[330096334,1718989982363,-908.0,0.00054,120]
[330096335,1718989982373,-908.0,0.00054,120]
[330096336,1718989982382,-908.0,0.00054,120]
[330096337,1718989982392,-908.0,0.00054,120]
[330096338,1718989982401,-908.0,0.00054,120]
[330096339,1718989982411,-908.0,0.00054,120]
[330096340,1718989982420,-395.44080428,0.00054,120]
[330096341,1718989982429,-1038.0,0.00054384,30]
[330096342,1718989982439,-151.0,0.00054603,120]
[330096343,1718989982448,-1084.59216057,0.00054794,4]
[330096344,1718989982458,-19704.13116543,0.00054794,120]
[330096345,1718989982467,-500.0,0.00054794,4]
[330096346,1718989982476,-573.6099557,0.00054794,4]
[330096347,1718989982485,-500.0,0.00054794,120]
[330096348,1718989982495,-500.0,0.00054794,120]
[330096349,1718989982504,-500.0,0.00054794,120]
[330096350,1718989982515,-500.0,0.00054794,120]
[330096351,1718989982524,-500.0,0.00054794,120]
[330096352,1718989982533,-500.0,0.00054794,120]
[330096353,1718989982542,-500.0,0.00054794,120]
[330096354,1718989982551,-500.0,0.00054794,120]
[330096355,1718989982561,-500.0,0.00054794,120]
[330096356,1718989982570,-500.0,0.00054794,120]
[330096357,1718989982579,-500.0,0.00054794,120]
[330096358,1718989982588,-500.0,0.00054794,120]
[330096359,1718989982597,-597.85505231,0.00054794,120]
[330096360,1718989982607,-500.0,0.00054795,18]
[330096361,1718989982616,-1000.0,0.000548,120]
[330096362,1718989982627,-1000.0,0.000548,120]
[330096363,1718989982638,-1000.0,0.000548,120]
[330096364,1718989982647,-1000.0,0.000548,120]
[330096365,1718989982658,-855.77881269,0.000548,30]
[330096366,1718989982668,-2000.0,0.000548,30]
[330096367,1718989982679,-1000.0,0.00054999,120]
[330096368,1718989982690,-208.18164684,0.00055,120]
[330096369,1718989982700,-49943.20049962,0.00055,30]
[330096370,1718989982709,-1969.0,0.00055,120]
[330096371,1718989982718,-288.39771893,0.00055,31]
[330096372,1718989982728,-1000.0,0.00055,60]
[330096373,1718989982738,-25000.0,0.00055,120]
[330096374,1718989982748,-255.67,0.00055,120]
[330096375,1718989982758,-2000.0,0.00055,110]
[330096376,1718989982768,-150.0,0.00055,50]
[330096377,1718989982778,-72417.73852049,0.00055,120]
[330096378,1718989982787,-4934.12008549,0.00055,120]
[330096379,1718989982796,-4470.15743116,0.00055,60]
[330096380,1718989982805,-25579.42827233,0.00055,5]
[330096381,1718989982815,-2100.0,0.00055,2]
[330096382,1718989982824,-151.0,0.00055068,120]
[330096383,1718989982834,-2500.0,0.000551,90]
[330096384,1718989982844,-165.74329278,0.00055311,120]
[330096385,1718989982855,-155.0,0.00055633,30]
[330096386,1718989982865,-151.0,0.00055726,120]
[330096387,1718989982877,-151.0,0.00055753,120]
[330096388,1718989982886,-1000.0,0.00055999,120]
[330096389,1718989982899,-580.0,0.00056,14]
[330096390,1718989982910,-339.0,0.00056,120]
[330096391,1718989982920,-11187.0,0.00056,120]
[330096392,1718989982929,-300.0,0.00056,120]
[330096393,1718989982940,-528.91,0.00056256,2]
[330096394,1718989982950,-151.0,0.00056438,120]
[330096395,1718989982960,-1339.80636676,0.000565,15]
[330096396,1718989982970,-10090.60538329,0.0005678,30]
[330096397,1718989982980,-15075.91698646,0.0005678,21]
[330096398,1718989982990,-151.0,0.00056849,120]
[330096399,1718989982999,-6870.0,0.00056955,117]
[330096400,1718989983008,-8591.09355044,0.00057,30]
[330096401,1718989983019,-2150.0,0.00057,2]
[330096402,1718989983028,-2857.96594897,0.00057068,29]
[330096403,1718989983037,-1038.0,0.00057103,120]
[330096404,1718989983048,-151.0,0.00057123,120]
[330096405,1718989983057,-2500.0,0.000578,90]
[330096406,1718989983067,-151.0,0.00057808,120]
[330096407,1718989983077,-151.0,0.00057973,120]
[330096408,1718989983086,-300000.0,0.00058,30]
[330096409,1718989983095,-645.15545013,0.00058,120]
[330096410,1718989983105,-150.0,0.00058,120]
[330096411,1718989983115,-150.0,0.00058,60]
[330096412,1718989983125,-500.0,0.00058,120]
[330096413,1718989983139,-678.48,0.00058068,2]
[330096414,1718989983148,-546.524567,0.00058383,120]
[330096415,1718989983159,-151.0,0.00058493,120]
[330096416,1718989983170,-528.91,0.0005852,2]
[330096417,1718989983181,-599.93409724,0.000587,30]
[330096418,1718989983190,-15415.38637982,0.0005875,40]
[330096419,1718989983199,-360908.11131238,0.00059,120]
[330096420,1718989983212,-5000.0,0.00059,120]
[330096421,1718989983222,-2200.0,0.00059,2]
[330096422,1718989983231,-568.40532375,0.0005909,2]
[330096423,1718989983240,-151.0,0.00059096,120]
[330096424,1718989983250,-151.0,0.00059178,120]
[330096425,1718989983261,-245.397814,0.00059383,120]
[330096426,1718989983270,-15000.0,0.0005978,40]
[330096427,1718989983279,-150.62936247,0.0005981,40]
[330096428,1718989983288,-151.0,0.00059863,120]
[330096429,1718989983298,-156.7578,0.00059888,30]
[330096430,1718989983308,-1038.0,0.00059958,120]
[330096431,1718989983318,-816.92857971,0.00059986,120]
[330096432,1718989983328,-360.0,0.0006,30]
[330096433,1718989983337,-200.0,0.0006,120]
[330096434,1718989983348,-1379.86574827,0.0006,120]
[330096435,1718989983359,-2867.46879975,0.0006,7]
[330096436,1718989983370,-897.84092469,0.0006,120]
[330096437,1718989983379,-883.13929949,0.0006,2]
[330096438,1718989983389,-249.28373333,0.0006,7]
[330096439,1718989983398,-326.30129599,0.0006,120]
[330096440,1718989983408,-1496.6160122,0.0006,120]
[330096441,1718989983418,-151.54009041,0.0006,120]
[330096442,1718989983429,-2704.16376871,0.0006,120]
[330096443,1718989983440,-2000.0,0.0006,120]
[330096444,1718989983450,-150.0,0.0006,120]
[330096445,1718989983459,-173.16,0.0006,2]
[330096446,1718989983468,-51324.66220909,0.0006,120]
[330096447,1718989983477,-500.0,0.0006,120]
[330096448,1718989983486,-173.25,0.0006,2]
[330096449,1718989983497,-15908.35604693,0.0006,120]
[330096450,1718989983506,-1040.52982142,0.0006,90]
[330096451,1718989983606,-21463.5115564,0.0006,120]
[330096452,1718989983616,-20613.00936335,0.0006,120]
[330096453,1718989983626,-16222.92053675,0.0006,92]
[330096454,1718989983635,-11078.59706718,0.0006,92]
[330096455,1718989983645,-1964.0,0.0006,30]
[330096456,1718989983656,-154.05,0.00060091,2]
[330096457,1718989983666,-7329.6,0.00060206,117]
[330096458,1718989983675,-151.0,0.00060219,120]
[330096459,1718989983685,-2857.96594897,0.00060248,32]
[330096460,1718989983695,-3044.67,0.00060274,120]
[330096461,1718989983705,-500.0,0.00060274,20]
[330096462,1718989983715,-2000.0,0.000603,30]
[330096463,1718989983725,-2500.0,0.000605,90]
[330096464,1718989983735,-151.0,0.00060548,120]
[330096465,1718989983746,-528.91,0.00060784,2]
[330096466,1718989983755,-162000.0,0.00061,30]
[330096467,1718989983766,-155.0,0.00061,7]
[330096468,1718989983775,-2250.0,0.00061,2]
[330096469,1718989983785,-151.0,0.00061233,120]
[330096470,1718989983795,-151.0,0.00061342,120]
[330096471,1718989983806,-150.4248345,0.00061769,120]
[330096472,1718989983817,-151.0,0.00061918,120]
[330096473,1718989983828,-1966.6927815,0.00062,120]
[330096474,1718989983837,-151.0,0.00062466,120]
[330096475,1718989983847,-151.0,0.00062603,120]
[330096476,1718989983858,-1038.0,0.00062956,120]
[330096477,1718989983869,-27622.76052867,0.00063,10]
[330096478,1718989983878,-2300.0,0.00063,2]
[330096479,1718989983887,-528.91,0.00063048,2]
[330096480,1718989983897,-151.0,0.00063288,120]
[330096481,1718989983906,-2500.0,0.000633,120]
[330096482,1718989983915,-2857.96594897,0.00063428,35]
[330096483,1718989983925,-7787.7,0.00063457,117]
[330096484,1718989983934,-151.0,0.00063589,120]
[330096485,1718989983944,-150.0,0.0006367,120]
[330096486,1718989983953,-151.0,0.00063973,120]
[330096487,1718989983962,-2000.0,0.00064,7]
[330096488,1718989983972,-300.0,0.00064,120]
[330096489,1718989983981,-500.0,0.00064,120]
[330096490,1718989983990,-678.48,0.00064138,2]
[330096491,1718989983999,-151.0,0.00064658,120]
[330096492,1718989984010,-440.95673523,0.000647,120]
[330096493,1718989984020,-151.0,0.00064712,120]
[330096494,1718989984029,-42577.54858733,0.000648,5]
[330096495,1718989984038,-1002.2566578,0.00065,60]
[330096496,1718989984051,-18180.26098439,0.00065,120]
[330096497,1718989984061,-150.0,0.00065,120]
[330096498,1718989984070,-151.64457627,0.00065,120]
[330096499,1718989984079,-150.0,0.00065,30]
[330096500,1718989984089,-10000.0,0.00065,120]
[330096501,1718989984098,-20000.0,0.00065,60]
[330096502,1718989984107,-150.0,0.00065,120]
[330096503,1718989984117,-1041.0,0.00065,120]
[330096504,1718989984132,-2350.0,0.00065,2]
[330096505,1718989984143,-151.0,0.00065342,120]
[330096506,1718989984153,-151.0,0.0006538,120]
[330096507,1718989984162,-200.0,0.000654,120]
[330096508,1718989984174,-10010.24353902,0.000655,120]
[330096509,1718989984183,-500.0,0.00065753,120]
[330096510,1718989984193,-2000.0,0.000658,30]
[330096511,1718989984203,-151.0,0.00065836,120]
[330096512,1718989984212,-95130.9174763,0.00066,30]
[330096513,1718989984221,-2500.0,0.00066,120]
[330096514,1718989984231,-151.0,0.00066027,120]
[330096515,1718989984241,-1038.0,0.00066104,120]
[330096516,1718989984250,-150.0,0.0006648,120]
[330096517,1718989984259,-49474395.78631142,0.0006657,120]
[330096518,1718989984535,-14973.35738636,0.0006657,120]
[330096519,1718989984546,-271.14701681,0.0006657,120]
[330096520,1718989984557,-638.19340764,0.0006657,120]
[330096521,1718989984569,-1281874.85292295,0.0006657,120]
[330096522,1718989984580,-38354.8654747,0.0006657,120]
[330096523,1718989984591,-7848.51538771,0.0006657,120]
[330096524,1718989984630,-0.0048158,0.0006657,120]
[330096525,1718989984677,-409.17503043,0.00027111,4]
[330096526,1718989984689,-650.36277005,0.00027111,4]
[330096527,1718989984727,-428.59210801,0.00026015,4]
[330096528,1718989984738,-931.13278959,0.00026015,4]
[330096529,1718989984751,-542.6351024,0.00026015,4]
[330096530,1718989984763,-172.73484142,0.00027111,4]
[330096531,1718989984774,-1623.6573581,0.00027111,4]
[330096532,1718989984784,-126.43199109,0.00027933,4]
[330096533,1718989984795,-746.60009089,0.00027933,4]
[330096534,1718989984807,-443.07349567,0.00027933,4]
[330096535,1718989984818,-656.8979232,0.00027933,4]
[330096536,1718989984830,-596.54649915,0.00027933,4]
[330096537,1718989984839,-152.08580658,0.00028218,4]
[330096538,1718989984851,-341.65759013,0.00028218,4]
[330096539,1718989984862,-699.84660329,0.00028218,4]
[330096540,1718989984871,-203.96739671,0.0006657,120]
[330096541,1718989984883,-864.39422921,0.0006657,120]
[330096542,1718989984894,-31758.500168,0.0006657,120]
[330096543,1718989985003,-2387.85,0.00021917,4]
[330096544,1718989985014,-500.0,0.0002218,4]
[330096545,1718989985024,-500.0,0.00024109,4]
[330096546,1718989985033,-2646.94,0.00024371,4]
[330096547,1718989985042,-3023.91789074,0.00025455,4]
[330096548,1718989985694,-500.0,0.00021917,2]
[330096549,1718989985704,-76.72697962,0.00021917,4]
[330096550,1718989985716,-423.27302038,0.00021917,4]
[330096551,1718989985725,-500.0,0.00021917,4]
[330096552,1718989985735,-1877.31,0.00022179,4]
[330096553,1718989985745,-2387.85,0.00022191,4]
[330096554,1718989985754,-500.0,0.00022191,2]
[330096555,1718989985765,-500.0,0.00022191,4]
[330096556,1718989985775,-500.0,0.00022191,4]
[330096557,1718989985784,-1877.31,0.00022453,4]
[330096558,1718989985794,-500.0,0.00022454,4]
[330096559,1718989985803,-2387.85,0.00022465,4]
[330096560,1718989985813,-500.0,0.00022465,2]
[330096561,1718989985822,-500.0,0.00022465,4]
[330096562,1718989985833,-500.0,0.00022465,4]
[330096563,1718989985844,-500.0,0.00022728,4]
[330096564,1718989985854,-2387.85,0.00022739,4]
[330096565,1718989985863,-500.0,0.00022739,2]
[330096566,1718989985873,-500.0,0.00022739,4]
[330096567,1718989985882,-151.0,0.0002299,7]
[330096568,1718989985891,-500.0,0.00023002,4]
[330096569,1718989985901,-500.0,0.00023013,2]
[330096570,1718989985911,-2387.85,0.00023013,4]
[330096571,1718989985920,-500.0,0.00023013,4]
[330096572,1718989985930,-500.0,0.00023276,4]
[330096573,1718989985940,-500.0,0.00023287,2]
[330096574,1718989985950,-2387.85,0.00023287,4]
[330096575,1718989985959,-500.0,0.00023287,4]
[330096576,1718989985970,-500.0,0.0002355,4]
[330096577,1718989985981,-500.0,0.00023561,2]
[330096578,1718989985993,-2387.85,0.00023561,4]
[330096579,1718989986002,-500.0,0.00023561,4]
[330096580,1718989986014,-500.0,0.00023824,4]
[330096581,1718989986023,-2387.85,0.00023835,4]
[330096582,1718989986033,-500.0,0.00023835,2]
[330096583,1718989986042,-254.34,0.00023835,4]
[330096584,1718989986052,-500.0,0.00024098,4]
[330096585,1718989986062,-2387.85,0.00024109,4]
[330096586,1718989986073,-500.0,0.00024109,2]
[330096587,1718989986083,-500.0,0.00024372,4]
[330096588,1718989986094,-500.0,0.00024383,4]
[330096589,1718989986104,-2387.85,0.00024383,4]
[330096590,1718989986114,-500.0,0.00024383,2]
[330096591,1718989986124,-2646.94,0.00024645,4]
[330096592,1718989986138,-500.0,0.00024646,4]
[330096593,1718989986149,-500.0,0.00024657,4]
[330096594,1718989986160,-2387.85,0.00024657,4]
[330096595,1718989986171,-179.72005429,0.00024657,2]
[330096596,1718989986181,-2646.94,0.00024919,4]
[330096597,1718989986191,-500.0,0.0002492,4]
[330096598,1718989986200,-272.1861952,0.00024931,4]
[330096599,1718989986212,-2387.85,0.00024931,4]
[330096600,1718989986222,-2646.94,0.00025193,4]
[330096601,1718989986233,-500.0,0.00025194,4]
[330096602,1718989986243,-500.0,0.00025205,7]
[330096603,1718989986253,-2387.85,0.00025205,4]
[330096604,1718989986264,-13578.81210926,0.00025455,4]
[330096605,1718989986274,-2646.94,0.00025467,4]
[330096606,1718989986284,-500.0,0.00025479,7]
[330096607,1718989986293,-16602.73,0.00025729,4]
[330096608,1718989986304,-2646.94,0.00025741,4]
[330096609,1718989986314,-500.0,0.00025753,7]
[330096610,1718989986323,-16602.73,0.00026003,4]
[330096611,1718989986334,-2646.94,0.00026015,4]
[330096612,1718989986345,-500.0,0.00026027,7]
[330096613,1718989986356,-16602.73,0.00026277,4]
[330096614,1718989986368,-1902.36,0.00026289,4]
[330096615,1718989986379,-2646.94,0.00026289,4]
[330096616,1718989986389,-500.0,0.00026301,7]
[330096617,1718989986398,-16602.73,0.00026551,4]
[330096618,1718989986408,-1902.36,0.00026563,4]
[330096619,1718989986417,-2646.94,0.00026563,4]
[330096620,1718989986428,-500.0,0.00026575,7]
[330096621,1718989986438,-16602.73,0.00026825,4]
[330096622,1718989986447,-1902.36,0.00026837,4]
[330096623,1718989986457,-2646.94,0.00026837,4]
[330096624,1718989986467,-500.0,0.00026849,7]
[330096625,1718989986476,-16602.73,0.00027099,4]
[330096626,1718989986488,-1902.36,0.00027111,4]
[330096627,1718989986499,-2646.94,0.00027111,4]
[330096628,1718989986511,-500.0,0.00027123,7]
[330096629,1718989986521,-16602.73,0.00027373,4]
[330096630,1718989986530,-2855.93,0.00027385,4]
[330096631,1718989986540,-1902.36,0.00027385,4]
[330096632,1718989986550,-2646.94,0.00027385,4]
[330096633,1718989986559,-371.70001563,0.00027397,7]
[330096634,1718989986570,-16602.73,0.00027647,4]
[330096635,1718989986581,-2855.93,0.00027659,4]
[330096636,1718989986590,-1902.36,0.00027659,4]
[330096637,1718989986600,-2646.94,0.00027659,4]
[330096638,1718989986610,-16602.73,0.00027921,4]
[330096639,1718989986620,-2855.93,0.00027933,4]
[330096640,1718989986630,-1902.36,0.00027933,4]
[330096641,1718989986642,-16602.73,0.00028195,4]
[330096642,1718989986652,-2569.55,0.00028207,4]
[330096643,1718989986662,-2855.93,0.00028207,4]
[330096644,1718989986673,-1902.36,0.00028207,4]
[330096645,1718989986684,-555.30410758,0.00028481,4]
[330096646,1718989986700,-2014.39565703,0.00028481,4]
[330096647,1718989986710,-656.6744219,0.00028481,4]
[330096648,1718989986739,-4386.37990555,0.0002219,4]
[330096649,1718989986751,-5752.90009445,0.0002219,4]
[330096650,1718989986761,-500.0,0.00022739,4]
[330096651,1718989986771,-2646.94,0.00027933,4]
[330096652,1718989986781,-2199.41625613,0.00028481,4]
[330096653,1718989986791,-1902.50509314,0.00028481,4]
[330096654,1718989986801,-1193.70940367,0.00028492,4]
[330096656,1718989986811,-26814.78267829,0.0006657,120]
[330096657,1718989986823,-48081.05777663,0.0006657,120]
[330096658,1718989986846,-500.0,0.00025468,4]
[330096659,1718989986858,-3097.99853864,0.0006657,120]
[330096660,1718989986870,-306.76,0.0006657,120]
[330096661,1718989986881,-907410.85445742,0.0006657,120]
[330096662,1718989986893,-2428.01392978,0.0006657,120]
[330096663,1718989986906,-968.49131176,0.0006657,120]
[330096664,1718989987026,-1877.31,0.00022727,4]
[330096665,1718989987038,-500.0,0.00023013,4]
[330096666,1718989987048,-2214.84178615,0.00025479,4]
[330096667,1718989987062,-173.00821385,0.00025479,4]
[330096668,1718989987073,-2646.94,0.00028207,4]
[330096669,1718989987083,-968.2874467,0.00028469,4]
[330096670,1718989987843,150.94,0.00025389,120]
[330096673,1718990070362,150.5,0.0002354,30]
[330096674,1718990070923,150.5,0.0002353,30]
[330096675,1718990071452,151.0,0.0002352,30]
[330096676,1718990071482,150.5,0.0002354,30]
[330096677,1718990071975,150.5,0.0002353,30]
[330096678,1718990072484,150.5,0.0002352,30]
[330096680,1718990192504,150.5,0.00023003,30]
[330096681,1718990192999,150.5,0.00022993,30]
[330096682,1718990193500,150.5,0.00022983,30]
[330096683,1718990197440,-454.48,0.00019429,2]
[330096684,1718990197465,-150.0,0.00019725,2]
[330096685,1718990197492,-300.0,0.00019725,2]
[330096686,1718990197518,-250.0,0.00021026,2]
[330096687,1718990197542,-170.37,0.00021102,2]
[330096688,1718990197567,-18233.62,0.00021163,2]
[330096689,1718990197590,-250.0,0.00021269,2]
[330096690,1718990197613,-235.32,0.00021305,2]
[330096691,1718990197637,-951.86,0.00021392,2]
[330096692,1718990197659,-8016.02,0.00021478,2]
[330096693,1718990197682,-407.08,0.00021644,2]
[330096694,1718990197706,-150.94,0.00021762,2]
[330096695,1718990197732,-1120.242,0.00021817,2]
[330096696,1718990197754,-1056.22,0.00021886,2]
[330096697,1718990197777,-500.0,0.00021917,4]
[330096698,1718990197800,-500.0,0.00021917,4]
[330096699,1718990197824,-1005.8,0.00021917,4]
[330096700,1718990197848,-772.45,0.00021917,4]
[330096701,1718990197871,-500.0,0.00021917,4]
[330096702,1718990197894,-500.0,0.00021917,4]
[330096703,1718990197917,-1487.67,0.00021917,4]
[330096704,1718990197940,-500.0,0.00021917,4]
[330096705,1718990197963,-500.0,0.00021917,4]
[330096706,1718990197990,-500.0,0.00021917,4]
[330096707,1718990198014,-500.0,0.00021917,4]
[330096708,1718990198037,-500.0,0.00021917,4]
[330096709,1718990198059,-500.0,0.00021917,4]
[330096710,1718990198082,-1302.06,0.00021917,4]
[330096711,1718990198105,-500.0,0.00021917,4]
[330096712,1718990198128,-500.0,0.00021917,4]
[330096713,1718990198151,-500.0,0.00021917,4]
[330096714,1718990198174,-500.0,0.00021917,4]
[330096715,1718990198198,-500.0,0.00021917,4]
[330096716,1718990198243,-1105.45,0.00021917,4]
[330096717,1718990198265,-500.0,0.00021917,4]
[330096718,1718990198289,-500.0,0.00021917,2]
[330096719,1718990198312,-500.0,0.00021917,4]
[330096720,1718990198335,-500.0,0.00021917,4]
[330096721,1718990198538,-500.0,0.00021917,4]
[330096722,1718990198562,-500.0,0.00021917,4]
[330096723,1718990198590,-500.0,0.00021917,4]
[330096724,1718990198614,-500.0,0.00021917,4]
[330096725,1718990198640,-500.0,0.00021917,4]
[330096726,1718990198666,-610.83666189,0.00021917,4]
[330096727,1718990198690,-500.0,0.00021917,4]
[330096728,1718990198714,-500.0,0.00021917,4]
[330096729,1718990198744,-500.0,0.00021917,4]
[330096730,1718990198767,-500.0,0.00021917,4]
[330096731,1718990198791,-500.0,0.00021917,4]
[330096732,1718990198814,-500.0,0.00021917,4]
[330096733,1718990198838,-630.12968768,0.00021917,4]
[330096734,1718990198861,-500.0,0.00021917,4]
[330096735,1718990198884,-500.0,0.00021917,4]
[330096736,1718990198908,-500.0,0.00021917,4]
[330096737,1718990198931,-500.0,0.00021917,4]
[330096738,1718990198955,-1605.24,0.00021917,4]
[330096739,1718990198983,-500.0,0.00021917,4]
[330096740,1718990199007,-569.56,0.00021917,4]
[330096741,1718990199033,-500.0,0.00021917,4]
[330096742,1718990199057,-812.48,0.00021917,4]
[330096743,1718990199082,-500.0,0.00021917,4]
[330096744,1718990199105,-500.0,0.00021917,4]
[330096745,1718990199130,-500.0,0.00021917,4]
[330096746,1718990199154,-500.0,0.00021917,4]
[330096747,1718990199178,-1061.28,0.00021917,4]
[330096748,1718990199206,-500.0,0.00021917,4]
[330096749,1718990199234,-758.73,0.00021917,4]
[330096750,1718990199260,-542.96,0.00021917,4]
[330096751,1718990199285,-500.0,0.00021917,4]
[330096752,1718990199310,-500.0,0.00021917,4]
[330096753,1718990199335,-263.35684019,0.00021917,4]
[330096754,1718990199358,-500.0,0.00021917,4]
[330096755,1718990199383,-500.0,0.00021917,4]
[330096756,1718990199407,-500.0,0.00021917,4]
[330096757,1718990199431,-965.65,0.00021917,4]
[330096758,1718990199454,-500.0,0.00021917,4]
[330096759,1718990199479,-5279.74,0.00021917,4]
[330096760,1718990199503,-1112.63,0.00021917,4]
[330096761,1718990199527,-500.0,0.00021917,4]
[330096762,1718990199551,-1038.94,0.00021917,4]
[330096763,1718990199574,-1022.28,0.00021917,4]
[330096764,1718990199598,-500.0,0.00021917,4]
[330096765,1718990199622,-500.0,0.00021917,4]
[330096766,1718990199647,-206.18403941,0.00021917,4]
[330096767,1718990199671,-594.05,0.00021917,4]
[330096768,1718990199695,-500.0,0.00021917,4]
[330096769,1718990199718,-1150.63,0.00021917,4]
[330096770,1718990199744,-500.0,0.00021917,4]
[330096771,1718990199768,-500.0,0.00021917,4]
[330096772,1718990199792,-500.0,0.00021917,4]
[330096773,1718990199815,-753.1,0.00021917,4]
[330096774,1718990199838,-923.38,0.00021917,4]
[330096775,1718990199862,-500.0,0.00021917,4]
[330096776,1718990199885,-871.28,0.00021917,4]
[330096777,1718990199909,-500.0,0.00021917,4]
[330096778,1718990199932,-500.0,0.00021917,4]
[330096779,1718990199955,-500.0,0.00021917,4]
[330096780,1718990199980,-500.0,0.00021917,4]
[330096781,1718990200003,-1260.42,0.00021917,4]
[330096782,1718990200026,-697.22,0.00021917,4]
[330096783,1718990200050,-534.86,0.00021917,4]
[330096784,1718990200074,-714.72,0.00021917,4]
[330096785,1718990200098,-9716.81,0.00021917,4]